{"text_format":"1","workbook":"xlsx","n_sheets":3,"sheets":["Prompt","Cedula3BP","Enviar"],"not_rendered":{"charts":0,"images":4,"macros":1,"external_links":0,"defined_names":0,"comments":1,"pivot_tables":0},"unopened":[],"bounds":{"document_bytes":16777216,"sheet_cells":100000,"rows_first":2000,"rows_last":500,"rows_between":2000,"halvings":0,"cell_chars":16384,"cell_head_chars":4096},"cells_cut":0,"cells_raw":0,"read":"whole","date_system":"1900"}

{"sheet":"Prompt","index":0,"n_rows":38,"n_cols":4,"rows_kept":38,"cut":false,"hidden":false,"merged":[[0,3,1,5],[3,1,5,8],[8,1,9,8],[37,1,38,8]]}
[null,null,null,"¡ATENCIÓN!"]
[]
[]
[null,"Para hacer uso de las funcionalidades de esta Cédula Electrónica debe habilitar macros"]
[]
[]
[]
[]
[null,"Si utiliza Excel 2000, 2002, 2003 siga el siguiente procedimiento:"]
[]
[]
[]
[]
[]
[]
[]
[]
[]
[]
[]
[]
[]
[]
[]
[]
[]
[]
[]
[]
[]
[]
[]
[]
[]
[]
[]
[]
[null,"Si utiliza Excel 2007 siga el siguiente procedimiento:"]

{"sheet":"Cedula3BP","index":1,"n_rows":138,"n_cols":21,"rows_kept":138,"cut":false,"hidden":true,"merged":[[0,18,0,20],[95,17,95,20],[93,17,93,20],[94,2,94,7],[93,2,93,7],[95,2,95,7],[95,8,95,11],[95,12,95,16],[93,8,93,11],[94,17,94,20],[94,8,94,11],[92,17,92,20],[92,3,92,6],[58,9,58,10],[57,7,58,8],[92,12,92,16],[58,17,58,18],[92,8,92,11],[58,13,58,14],[58,19,58,20],[93,12,93,16],[70,7,71,8],[71,9,71,10],[71,11,71,12],[71,13,71,14],[71,15,71,16],[71,17,71,18],[71,19,71,20],[94,12,94,16],[58,11,58,12],[57,2,59,6],[67,4,67,6],[58,15,58,16],[70,2,72,6],[4,2,4,3],[36,19,36,20],[35,7,36,8],[36,11,36,12],[36,17,36,18],[36,13,36,14],[36,15,36,16],[36,9,36,10],[35,2,37,6],[16,18,16,19],[27,17,27,18],[28,7,28,8],[29,17,29,18],[1,18,3,20],[12,18,12,19],[14,6,14,19],[16,6,16,14],[1,6,1,16],[3,6,3,16],[4,6,4,16],[2,6,2,16]]}
[null,null,null,null,null,null,null,null,null,null,null,null,null,null,null,null,null,null,"CÉDULA"]
[null,null,null,null,null,null,"CENSO EDUCATIVO 2022",null,null,null,null,null,null,null,null,null,null,null,"3BP"]
[null,null,null,null,null,null,"EDUCACIÓN BÁSICA REGULAR"]
[null,null,null,null,null,null,"PRIMARIA"]
[null,null,"Versión :",null,3]
[null,null,"INSTRUCCIONES DEL FORMATO ELECTRÓNICO "]
[]
[]
[]
[null,null,"IDENTIFICACIÓN DEL SERVICIO EDUCATIVO"]
[]
[]
[null,null,"1.  CÓDIGO MODULAR :",null,null,null,null,null,"2. NÚMERO DE ANEXO :",null,null,null,null,"3. CÓDIGO DE LOCAL EDUCATIVO :"]
[]
[null,null,"4.  NOMBRE DEL SERVICIO :"]
[]
[null,null,"5. DISTRITO :",null,null,null,null,null,null,null,null,null,null,null,null,null,null,"GESTIÓN :   ",null,null,{"$f":"IF(S17=\"2: Privada\",\"X\",\"\")","v":""}]
[]
[]
[null,null,"COSTOS POR PANDEMIA 2020 (SOLO GESTIÓN PRIVADA)"]
[null,null,"6.   DURANTE EL AÑO 2020, ¿EL SERVICIO EDUCATIVO REDUJO"]
[null,null,null,"EL COSTO DE LA PENSIÓN ESCOLAR POR LA PANDEMIA?",null,null,null,null,null,null,null,null,"Si   ",null,null,"No   ",null,"Pase a la SECCIÓN 100."]
[]
[null,null,"7.   INDIQUE EL COSTO DE LA NUEVA PENSIÓN ESCOLAR (COSTO MENSUAL Y EN MONEDA NACIONAL)"]
[null,null,null,"QUE COBRÓ EN 2020 DEBIDO A LA PANDEMIA, SEGÚN ESCALA."]
[]
[null,null,null,null,"Escala",null,"Única",null,null,null,null,null,null,"Varias"]
[null,null,null,null,null,null,null,null,null,null,null,null,null,null,"Escala mínima"]
[null,null,null,null,null,null,"Pensión"]
[null,null,null,null,null,null,null,null,null,null,null,null,null,null,"Escala máxima"]
[]
[]
[null,null,"100. RESULTADO DEL EJERCICIO EDUCATIVO"]
[null,null,"Complete y remita esta sección entre diciembre del año 2022 y enero del año 2023."]
[null,null,"101 - RESULTADO DEL EJERCICIO EDUCATIVO A DICIEMBRE DE 2022, POR GRADO DE ESTUDIO Y SEXO"]
[null,null,"SITUACIÓN",null,null,null,null,"TOTAL",null,"GRADO DE ESTUDIO Y SEXO"]
[null,null,null,null,null,null,null,null,null,"1º",null,"2º",null,"3º",null,"4º",null,"5º",null,"6º"]
[null,null,null,null,null,null,null,"H","M","H","M","H","M","H","M","H","M","H","M","H","M"]
["00",null,"TOTAL MATRÍCULA",null,null,null,null,{"$f":"SUM(H40,H42:H47)","v":0},{"$f":"SUM(I40,I42:I47)","v":0},{"$f":"SUM(J40:J47)","v":0},0,0,0,0,0,0,0,0,0,0,0]
["01",null,"Promovidos de grado",null,null,null,"1/",{"$f":"SUM(J40,L40,N40,P40,R40,T40)","v":0},0]
["02",null,"Requiere recuperación pedagógica",null,null,null,null,0,0,0,0,0,0,0,0,0,0,0,0,0,0]
["03",null,"Promoción guiada",null,null,null,"2/",{"$f":"SUM(J42,L42,N42,P42,R42,T42)","v":0},{"$f":"SUM(K42,M42,O42,Q42,S42,U42)","v":0}]
[null,null,"Permanecen en el grado",null,null,null,null,{"$f":"SUM(J43,L43,N43,P43,R43,T43)","v":0},{"$f":"SUM(K43,M43,O43,Q43,S43,U43)","v":0},0,0,0,0,0,0,0,0,0,0,0,0]
["04",null,"Trasladados a otras II.EE.",null,null,null,"3/",0,0]
["05",null,"Postergación de evaluación",null,null,null,"4/",0,0]
["06",null,"Retirados",null,null,null,"5/",0,0]
["07",null,"Fallecidos",null,null,null,null,0,0]
[null,null,"1/ Promovidos de grado : Estudiantes que al término del ejercicio educatívo 2022 fueron considerados aptos para ser promovidos."]
[null,null,"2/ Promoción guiada : Estudiantes que serán promovidos de grado, pero que, debido a la emergencia sanitaria, no alcanzaron todas las competencias necesarias"]
[null,null,"en el año 2022, y deberán hacerlo durante el año 2023."]
[null,null,"3/ Trasladados a otras II.EE. : Estudiantes que se van a otra I.E. dentro o fuera de la localidad entre abril y octubre de 2022."]
[null,null,"4/ Postergación de Evaluación : Se da cuando el padre de familia solicita, con documentos probatorios, posponer la evaluación de un estudiante por"]
[null,null,"enfermedad, accidente, cambio de residencia al extranjero o viaje en delegación oficial."]
[null,null,"5/ Retirados : Estudiantes que durante el año académico 2021 dejaron de asistir por diversos motivos y no se encuentran aptos para la evaluación final."]
[null,null,"No incluir a los estudiantes trasladados a otra I.E."]
[]
[null,null,"102 - RETIRADOS POR GRADO DE ESTUDIO Y SEXO, SEGÚN MOTIVO"]
[null,null,"MOTIVO",null,null,null,null,"TOTAL",null,"GRADO DE ESTUDIO Y SEXO"]
[null,null,null,null,null,null,null,null,null,"1º",null,"2º",null,"3º",null,"4º",null,"5º",null,"6º"]
[null,null,null,null,null,null,null,"H","M","H","M","H","M","H","M","H","M","H","M","H","M"]
["00",null,"TOTAL RETIRADOS",null,null,null,null,{"$f":"SUM(H62:H68)","v":0},0,0,0,0,0,0,0,0,0,0,0,0,0]
["01",null,"Situación económica",null,null,null,null,{"$f":"SUM(J62,L62,N62,P62,R62,T62)","v":0},0]
["02",null,"Violencia",null,null,null,null,0,0]
["03",null,"Enfermedad",null,null,null,null,0,0]
["04",null,"Trabajo infantil",null,null,null,null,0,0]
["05",null,"Apoyo en labores agrícolas",null,null,null,null,0,0]
["06",null,"Adicción",null,null,null,null,0,0]
["07",null,"Otros",null,null,null,null,0,0]
[null,null,"Nota.- Los totales de esta tabla deben ser iguales a los reportados en el rubro “Retirados” de la tabla 101"]
[null,null,"103. MATRÍCULA TOTAL POR GRADO DE ESTUDIO Y SEXO, SEGÚN TIPO DE DISCAPACIDAD U OTRA CONDICIÓN"]
[null,null,"TIPO DE DISCAPACIDAD U OTRA CONDICIÓN",null,null,null,null,"TOTAL",null,"GRADO DE ESTUDIO Y SEXO"]
[null,null,null,null,null,null,null,null,null,"1º",null,"2º",null,"3º",null,"4º",null,"5º",null,"6º"]
[null,null,null,null,null,null,null,"H","M","H","M","H","M","H","M","H","M","H","M","H","M"]
["00",null,"TOTAL",null,null,null,null,{"$f":"SUM(H75:H88)","v":0},0,0,0,0,0,0,0,0,0,0,0,0,0]
["01",null,"Discapacidad Intelectual-Leve",null,null,null,null,{"$f":"SUM(J75,L75,N75,P75,R75,T75)","v":0},{"$f":"SUM(K75,M75,O75,Q75,S75,U75)","v":0}]
["02",null,"Discapacidad Intelectual-Moderada",null,null,null,null,0,0]
["03",null,"Discapacidad Intelectual-Severa",null,null,null,null,0,0]
["04",null,"Discapacidad Auditiva-Hipoacusia",null,null,null,null,0,0]
["05",null,"Discapacidad Auditiva-Sordera",null,null,null,null,0,0]
["06",null,"Discapacidad Visual-Baja visión",null,null,null,null,0,0]
["07",null,"Discapacidad Visual-Ceguera",null,null,null,null,{"$f":"SUM(J81,L81,N81,P81,R81,T81)","v":0},{"$f":"SUM(K81,M81,O81,Q81,S81,U81)","v":0}]
["08",null,"Discapacidad Física o Motora",null,null,null,null,0,0]
["09",null,"Trastorno del espectro Autista (TEA)",null,null,null,null,0,0]
["10",null,"Sordoceguera",null,null,null,null,0,0]
["11",null,"Multidiscapacidad",null,null,null,null,0,0]
["12",null,"Talento y Superdotación (altas capacidades)",null,null,null,null,0,0]
["13",null,"Otra discapacidad u otra condición",null,null,null,null,0,0]
["14",null,"Ninguna (No tiene discapacidad u otra condición)",null,null,null,null,0,0]
[null,null,"Nota 2: Los totales de esta tabla deben ser iguales a los de la tabla 101 por edad y sexo."]
[]
[null,null,"DATOS DEL RESPONSABLE DEL LLENADO DE LA CÉDULA"]
[]
[null,null,null,"NOMBRES Y APELLIDOS",null,null,null,null,"CARGO",null,null,null,"CORREO ELECTRÓNICO",null,null,null,null,"TELÉFONO"]
["1"]
["2"]
["3"]
[]
[]
[]
["DIRECTOR(A)"]
["SUB DIRECTOR(A)"]
["DOCENTE"]
["COORDINADOR(A)"]
["ASESOR"]
["ADMINISTRATIVO"]
["ASISTENTE"]
["AUXILIAR"]
["SECRETARIA(O)"]
["ESTADÍSTICO"]
["ESPECIALISTA"]
["BIBLIOTECARIO"]
["CARE"]
["COMANDANTE PNP"]
["CONTADOR"]
["DAIP"]
["DIGITADOR(A)"]
["GERENTE"]
["JEFE ACADÉMICO"]
["JEFE ADMINISTRATIVO"]
["JEFE DE ÁREA"]
["JEFE DE LABORATORIO"]
["JEFE DE PERSONAL"]
["JEFE DE SEDE"]
["JEFE DE UNIDAD"]
["OFICINISTA"]
["OPERADOR DE SISTEMAS"]
["PERSONAL DE SERVICIO"]
["PROGRAMADOR"]
["PROMOTOR(A)"]
["PSICOLOGO"]
["REGISTRADOR(A)"]
["REPRESENTANTE LEGAL"]
["SOPORTE TECNOLOGICO"]
["TÉCNICO ADMINISTRATIVO"]
["TESORERO(A)"]
["TRABAJADOR SOCIAL"]
["TUTOR"]
["OTROS"]

{"sheet":"Enviar","index":2,"n_rows":9,"n_cols":3,"rows_kept":9,"cut":false,"hidden":true,"merged":[[0,0,0,3],[1,0,1,3]]}
["CENSO ESCOLAR 2022"]
["RESULTADO DEL EJERCICIO EDUCATIVO"]
[]
[]
[null,"Paso 1:","Realice el ENVÍO con su clave EOL."]
[]
[null,"Paso 2:","Una vez realizado el ENVÍO,  Revise su constancia de envio."]
[]
[null,"  ADVERTENCIA","Asegúrese de registrar toda la información del nivel informante"]